bitfinex-derivatives/quotes_ETHF0:USTF0_20240822
["timestamp","ask_amount","ask_price","bid_price","bid_amount"]
[1724349992590,5.53166,2606.2,2606.1,0.00576314]
[1724349993396,4.57269,2606.2,2606.1,0.00576314]
[1724349995001,0.73589,2606.2,2606.1,0.00576314]
[1724349995697,0.3523,2606.2,2606.1,0.38936314]
[1724349995903,0.3506,2606.4,2606.3,0.38357]
[1724349997097,0.3771,2606.5,2606.4,0.38356]
[1724349998092,0.38357,2606.4,2606.2,0.75528]
[1724349998294,0.76065,2606.5,2606.3,0.38357]
[1724349998502,0.3666,2606.4,2606.3,0.38357]
[1724349999307,0.75017,2606.4,2606.3,0.38357]
[1724349999600,0.75017,2606.4,2606.2,0.75528]
[1724350000808,0.3666,2606.4,2606.3,0.38357]
[1724350001309,0.3771,2606.5,2606.2,0.3717]
[1724350001506,0.3771,2606.5,2606.4,0.38356]
[1724350002709,0.0046743,2606.6,2606.5,0.38354]
[1724350004202,0.3882143,2606.6,2606.2,0.3717]
[1724350004409,0.7551143,2606.6,2606.5,0.38354]
[1724350004609,0.3715743,2606.6,2606.5,0.38354]
[1724350005602,0.3715743,2606.6,2606.4,0.38355]
[1724350005803,0.3715743,2606.6,2606.2,0.3717]
[1724350005804,0.7551043,2606.6,2606.5,0.38354]
[1724350006104,0.3715743,2606.6,2606.4,0.38354]
[1724350006309,0.3715743,2606.6,2606.2,0.3717]
[1724350006310,0.38356,2606.4,2606.3,0.38356]
[1724350006898,0.38357,2606.3,2606.2,0.75527]
[1724350007201,0.38357,2606.3,2606.2,0.38357]
[1724350008109,0.38357,2606.4,2606.3,0.38356]
[1724350008913,0.38358,2606.3,2606.2,0.38358]
[1724350009112,0.73398,2606.3,2606.2,0.38358]
[1724350009410,0.3504,2606.3,2606.2,0.38358]
[1724350010214,3.59135,2606.5,2606.4,0.38356]
[1724350011302,3.2078,2606.5,2606.4,0.38356]
[1724350011517,0.0046743,2606.6,2606.5,0.38354]
[1724350012214,0.0046743,2606.6,2606.5,4.22034]
[1724350012518,0.0046743,2606.6,2606.5,1.3424]
[1724350012717,0.0046743,2606.6,2606.5,5.1792]
[1724350013509,0.0046743,2606.6,2606.5,4.22034]
[1724350014213,0.0046743,2606.6,2606.5,4.56964]
[1724350015718,0.0046743,2606.6,2606.5,5.5285]
[1724350016422,0.0046743,2606.6,2606.5,4.56964]
[1724350017218,0.0046743,2606.6,2606.5,5.5285]
[1724350018517,0.0046743,2606.6,2606.5,4.56964]
[1724350019811,0.0046743,2606.6,2606.5,5.5285]
[1724350021216,0.0046743,2606.6,2606.5,4.56964]
[1724350022916,0.0046743,2606.6,2606.5,6.48736]
[1724350023120,0.0046743,2606.6,2606.5,11.48736]
[1724350023325,0.00576314,2606.7,2606.6,2.30119]
[1724350023522,5.37427755,2607.6,2607.0,0.95866]
[1724350023719,11.14812755,2607.7,2607.1,3.5873]
[1724350023911,0.38339,2607.6,2607.2,0.3808]
[1724350024116,10.18968755,2607.7,2607.2,0.3808]
[1724350024117,1.11187,2607.7,2607.6,0.38338]
[1724350024328,1.11565529,2607.7,2607.6,0.00403392]
[1724350025112,4.95085529,2607.7,2607.6,0.00403392]
[1724350028226,1.11565529,2607.7,2607.6,0.00403392]
[1724350029421,0.73228529,2607.7,2607.6,0.00403392]
[1724350029724,0.73228529,2607.7,2607.6,4.22261392]
[1724350029725,0.00378529,2607.7,2607.6,4.22261392]
[1724350030320,0.00378529,2607.7,2607.6,0.38741392]
[1724350031125,0.38715529,2607.7,2607.6,0.38741392]
[1724350031438,0.76705529,2607.7,2607.6,0.00403392]
[1724350032029,5.56067529,2607.7,2607.6,0.00403392]
[1724350032332,0.38344,2607.2,2607.0,0.38346]
[1724350032630,0.3799,2607.1,2606.8,3.5852]
[1724350032832,0.76336,2607.1,2606.8,3.5852]
[1724350033129,3.5631,2607.4,2607.2,0.38344]
[1724350033325,0.38343,2607.3,2606.8,3.5852]
[1724350033526,0.38343,2607.3,2607.2,0.00425052]
[1724350033936,4.21863,2607.3,2607.2,0.00425052]
[1724350034121,5.1772,2607.3,2607.2,0.00425052]
[1724350035333,4.21863,2607.3,2607.2,0.00425052]
[1724350035528,4.56893,2607.3,2607.2,0.00425052]
[1724350035927,0.38348,2607.0,2606.6,0.38353]
[1724350036138,0.7652,2606.9,2606.7,0.38351]
[1724350036333,0.3503,2606.8,2606.7,0.38351]
[1724350036630,0.3503,2606.8,2606.6,0.38352]
[1724350037032,0.3503,2606.8,2606.6,0.38623239]
[1724350037229,0.3503,2606.8,2606.6,0.00271239]
[1724350037437,0.3503,2606.8,2606.6,0.38624239]
[1724350037625,0.7338,2606.8,2606.6,0.00271239]
[1724350038033,0.3503,2606.8,2606.6,0.00271239]
[1724350038532,0.7338,2606.8,2606.6,0.00271239]
[1724350038836,0.3503,2606.8,2606.6,0.00271239]
[1724350039535,0.3503,2606.8,2606.6,0.38624239]
[1724350040724,0.3503,2606.8,2606.6,0.00271239]
[1724350040927,0.3503,2606.8,2606.6,0.38623239]
[1724350041527,0.38351,2606.7,2606.6,0.00271239]
[1724350042633,4.21951,2606.7,2606.6,0.00271239]
[1724350043240,5.1783,2606.7,2606.6,0.00271239]
[1724350043425,0.38359,2606.2,2606.1,0.00576314]
[1724350043836,3.8368,2606.2,2606.1,0.00576314]
[1724350044043,4.5619,2606.2,2606.1,0.00576314]
[1724350044236,0.7251,2606.2,2606.1,0.00576314]
[1724350044435,4.5619,2606.2,2606.1,0.01074621]
[1724350044645,0.7251,2606.2,2606.1,0.01074621]
[1724350045141,4.5619,2606.2,2606.1,0.01074621]
[1724350045330,0.7251,2606.2,2606.1,0.39434621]
[1724350046542,1.0952,2606.2,2606.1,0.39434621]
[1724350046740,4.932,2606.2,2606.1,0.39434621]
[1724350047047,1.0952,2606.2,2606.1,0.39434621]
[1724350048746,4.932,2606.2,2606.1,0.01074621]
[1724350048953,4.96489,2606.2,2606.1,0.01074621]
[1724350049247,5.34239,2606.2,2606.1,0.01074621]
[1724350050349,0.7445,2606.2,2606.1,0.39434621]
[1724350050841,0.00576314,2606.4,2606.3,0.38357]
[1724350052546,0.38932314,2606.4,2606.2,0.38358]
[1724350052748,0.00576314,2606.4,2606.2,0.38358]
[1724350053239,0.00576314,2606.4,2606.3,0.38357]
[1724350053435,0.00576314,2606.4,2606.2,0.38358]
[1724350053842,0.00576314,2606.4,2606.3,0.38357]
[1724350054039,0.00576314,2606.4,2606.2,0.38358]
[1724350054246,0.00576314,2606.4,2606.3,0.38357]
[1724350054636,0.00576314,2606.4,2606.1,0.01074621]
[1724350054637,0.00576314,2606.4,2606.2,0.38358]
[1724350055048,0.38932314,2606.4,2606.3,0.3536]
[1724350055849,0.38358,2606.3,2606.1,0.39433621]
[1724350056148,0.38358,2606.3,2606.1,0.01074621]
[1724350056149,0.38359,2606.2,2606.1,0.01074621]
[1724350056351,0.76689,2606.2,2606.1,0.01074621]
[1724350056541,0.38359,2606.2,2606.1,0.01074621]
[1724350057242,0.38358,2606.3,2606.1,0.39433621]
[1724350057545,0.00576314,2606.4,2606.1,0.01074621]
[1724350057737,0.38358,2606.3,2606.1,0.39433621]
[1724350060147,0.38359,2606.2,2606.1,0.01074621]
[1724350060352,0.38358,2606.3,2606.1,0.39434621]
[1724350061144,0.38359,2606.2,2606.1,0.01074621]
[1724350061351,0.38359,2606.2,2606.1,0.39434621]
[1724350062449,0.38358,2606.3,2606.1,0.39434621]
[1724350062652,0.38358,2606.3,2606.2,0.38359]
[1724350063853,0.38358,2606.3,2606.1,0.39433621]
[1724350064147,0.38359,2606.2,2606.1,0.01074621]
[1724350064653,0.38359,2606.2,2605.7,0.7326]
[1724350064654,0.38364,2605.9,2605.7,0.38366]
[1724350064851,0.38364,2605.9,2605.5,0.3649]
[1724350065146,0.46756756,2605.8,2605.7,0.38366]
[1724350065552,0.46756756,2605.8,2605.5,0.3649]
[1724350065749,0.38734867,2605.8,2605.7,0.00345798]
[1724350065943,9.30849258,2605.8,2605.7,0.00345798]
[1724350066140,14.45594771,2605.8,2605.7,0.00345798]
[1724350066350,12.90029019,2605.8,2605.7,0.00345798]
[1724350066650,12.96029019,2605.8,2605.7,0.00345798]
[1724350066952,12.96029785,2605.8,2605.7,0.00345798]
[1724350067350,4.65910005,2605.8,2605.7,0.00345798]
[1724350067543,4.06269785,2605.8,2605.7,0.00345798]
[1724350067747,7.90029785,2605.8,2605.7,0.00345798]
[1724350068357,3.67904785,2605.8,2605.7,0.00345798]
[1724350069646,0.00369867,2605.8,2605.7,0.00345798]
[1724350069854,0.47129769,2605.8,2605.7,0.38711798]
[1724350070051,0.15116587,2605.8,2605.7,4.22471798]
[1724350070361,0.00369867,2605.8,2605.7,4.22471798]
[1724350070747,0.15116587,2605.8,2605.7,4.22471798]
[1724350071350,0.47136899,2605.8,2605.7,4.22471798]
[1724350072955,0.00369867,2605.8,2605.7,4.22471798]
[1724350073456,0.00369867,2605.8,2605.7,3.84105798]
[1724350075059,0.38734867,2605.8,2605.7,0.00345798]
[1724350076459,0.00369867,2605.8,2605.7,4.22471798]
[1724350082255,3.21356314,2606.4,2606.2,0.38358]
[1724350082455,3.21356314,2606.4,2606.3,0.356]
[1724350082456,3.59712314,2606.4,2606.3,0.356]
[1724350082866,0.3836,2606.2,2606.0,0.3836]
[1724350083155,0.3836,2606.2,2606.0,0.7396]
[1724350083361,0.38841259,2606.2,2606.0,0.7396]
[1724350083757,0.38841259,2606.2,2606.1,0.3836]
[1724350083966,0.00481259,2606.2,2606.1,0.3836]
[1724350084365,0.00481259,2606.2,2606.1,4.2204]
[1724350084562,0.00481259,2606.2,2606.1,4.6046]
[1724350086465,0.00481259,2606.2,2606.1,0.7678]
[1724350086970,3.84161259,2606.2,2605.7,0.00345798]
[1724350087262,0.38362,2606.0,2605.8,0.73564]
[1724350087656,0.3673,2605.9,2605.8,0.73564]
[1724350088561,0.76711,2606.1,2605.8,4.1896]
[1724350088777,0.38361,2606.1,2606.0,0.38362]
[1724350089261,0.38361,2606.1,2605.8,0.352]
[1724350089262,0.00481259,2606.2,2606.1,0.3836]
[1724350093873,0.00576314,2606.4,2606.3,0.38357]
[1724350094059,0.00576314,2606.4,2606.3,5.17931]
[1724350094464,0.00576314,2606.4,2606.3,14.45425]
[1724350094772,0.7283,2607.2,2607.1,0.38345]
[1724350095070,0.73200086,2607.2,2607.1,0.38345]
[1724350095767,1.11544086,2607.2,2607.0,0.38346]
[1724350096174,0.73200086,2607.2,2607.0,0.38346]
[1724350096565,0.73200086,2607.2,2607.1,0.75045]
[1724350097380,0.38540086,2607.2,2607.1,0.75045]
[1724350097978,0.00370086,2607.2,2607.1,0.75045]
[1724350098362,0.00370086,2607.2,2607.1,4.58645]
[1724350098974,0.00576314,2607.4,2607.3,0.38342]
[1724350099171,0.00576314,2607.4,2607.3,11.70099]
[1724350099172,0.00296008,2607.4,2607.3,11.70099]
[1724350099376,0.00296008,2607.4,2607.3,16.70099]
[1724350099969,0.0067378,2607.4,2607.3,16.70099]
[1724350102770,0.38332,2608.1,2607.3,16.31757]
[1724350102970,3.2078,2608.3,2607.5,3.2078]
[1724350103166,0.3502,2608.0,2607.6,0.3663]
[1724350103375,0.3502,2608.0,2607.9,0.38334]
[1724350103885,0.35448231,2608.0,2607.9,0.38693018]
[1724350106974,3.94560231,2608.0,2607.9,0.38693018]
[1724350108283,3.94560231,2608.0,2607.9,0.00359018]
[1724350108988,7.78000231,2608.0,2607.9,0.00359018]
[1724350109691,8.73831231,2608.0,2607.9,0.00359018]
[1724350109986,0.38338,2607.7,2607.5,0.38339]
[1724350110184,0.3658,2607.6,2607.5,0.38339]
[1724350110478,0.7244,2607.6,2607.5,0.38339]
[1724350110692,1.10778,2607.6,2607.5,0.38339]
[1724350110883,0.7244,2607.6,2607.5,0.38643513]
[1724350112090,1.10778,2607.6,2607.5,0.00304513]
[1724350112481,4.94298,2607.6,2607.5,0.00304513]
[1724350112680,4.94298,2607.6,2607.5,0.38644513]
[1724350113385,0.7244,2607.6,2607.5,0.38644513]
[1724350114093,4.5596,2607.6,2607.5,0.38644513]
[1724350114979,3.2078,2607.7,2607.6,0.38338]
[1724350115185,0.35448231,2608.0,2607.9,0.38334]
[1724350116994,0.73780231,2608.0,2607.9,0.38334]
[1724350117695,0.35448231,2608.0,2607.9,0.38334]
[1724350118896,0.73780231,2608.0,2607.9,0.38334]
[1724350119281,0.35448231,2608.0,2607.9,0.38334]
[1724350119682,0.73780231,2608.0,2607.9,0.38334]
[1724350119880,0.35448231,2608.0,2607.9,0.38334]
[1724350120487,0.73780231,2608.0,2607.9,0.38334]
[1724350120987,0.35448231,2608.0,2607.9,0.38334]
[1724350121390,0.73780231,2608.0,2607.9,0.38334]
[1724350121996,0.73780231,2608.0,2607.6,0.3633]
[1724350122189,0.73780231,2608.0,2607.8,0.38334]
[1724350122497,0.35448231,2608.0,2607.9,0.38334]
[1724350123596,0.00428231,2608.0,2607.9,4.21774]
[1724350124383,0.00428231,2608.0,2607.9,0.38334]
[1724350124695,0.38334,2607.9,2607.8,0.38334]
[1724350124883,0.38761231,2608.0,2607.8,0.38334]
[1724350126591,0.38761231,2608.0,2607.9,0.38334]
[1724350126792,0.00428231,2608.0,2607.9,0.38334]
[1724350127195,0.00428231,2608.0,2607.8,0.38334]
[1724350127196,0.38334,2607.9,2607.8,0.38334]
[1724350127385,0.76084,2607.9,2607.8,0.38334]
[1724350128291,0.3775,2607.9,2607.8,0.38334]
[1724350129500,0.00428231,2608.0,2607.6,4.52954]
[1724350129792,0.00428231,2608.0,2607.9,0.38334]
[1724350129998,0.38760231,2608.0,2607.9,0.38334]
[1724350130184,0.00428231,2608.0,2607.9,0.38334]
[1724350131895,0.00428231,2608.0,2607.9,7.42554]
[1724350132094,0.00428231,2608.0,2607.9,13.38389]
[1724350132892,0.00428231,2608.0,2607.9,41.38389]
[1724350134695,0.00575197,2608.2,2608.1,0.38331]
[1724350134908,0.00575197,2608.2,2608.1,4.65758]
[1724350135096,0.00575197,2608.2,2608.1,13.84458]
[1724350135287,0.3699,2609.0,2608.9,0.38319]
[1724350135488,0.3778,2609.2,2609.1,0.38316]
[1724350135795,0.38071392,2609.2,2609.1,0.38316]
[1724350142606,0.38071392,2609.2,2608.9,3.21355197]
[1724350142901,1.11227,2609.1,2608.9,0.38894197]
[1724350143103,1.11227,2609.1,2608.9,0.00575197]
[1724350143104,0.38317,2609.0,2608.9,0.00575197]
[1724350143305,1.11227,2609.1,2608.9,0.38893197]
[1724350143602,0.7291,2609.1,2609.0,0.38317]
[1724350144099,4.94507,2609.1,2608.9,0.38893197]
[1724350144301,0.7291,2609.1,2608.9,0.00575197]
[1724350144508,0.38317,2609.0,2608.9,0.00575197]
[1724350145096,0.38317,2609.0,2608.3,8.23278]
[1724350145097,0.38321,2608.8,2608.6,0.38322]
[1724350145297,0.3735,2608.7,2608.6,0.38322]
[1724350145599,0.7234,2608.7,2608.6,0.38322]
[1724350145998,0.7234,2608.7,2608.4,0.3801]
[1724350146198,0.7234,2608.7,2608.6,0.38323]
[1724350146597,0.7234,2608.7,2608.5,0.38324]
[1724350146798,1.10662,2608.7,2608.4,0.38326]
[1724350147104,0.3484,2608.6,2608.4,0.38326]
[1724350147307,0.3484,2608.6,2608.3,0.00575197]
[1724350147308,0.3484,2608.6,2608.5,0.38325]
[1724350147605,0.3484,2608.6,2608.4,0.38326]
[1724350148207,0.3484,2608.6,2608.5,0.38325]
[1724350148913,0.3484,2608.6,2608.4,0.38326]
[1724350149314,0.3484,2608.6,2608.5,0.38325]
[1724350149999,0.3484,2608.6,2608.4,0.38325]
[1724350150201,0.7234,2608.7,2608.6,0.38323]
[1724350150901,0.7234,2608.7,2608.5,0.38324]
[1724350152407,0.7234,2608.7,2608.6,0.38323]
[1724350152620,0.38317,2609.1,2608.8,0.38319]
[1724350152913,0.38318,2609.0,2608.8,0.38319]
[1724350153112,0.75748,2609.0,2608.7,0.38321]
[1724350153314,0.75748,2609.0,2608.8,0.3832]
[1724350153710,0.3743,2609.0,2608.8,0.3832]
[1724350154212,0.3743,2609.0,2608.9,0.38319]
[1724350154420,0.75396,2609.1,2608.9,0.38319]
[1724350154713,1.12726,2609.1,2608.9,0.38319]
[1724350154914,0.7441,2609.1,2609.0,0.38317]
[1724350156017,0.7441,2609.1,2608.7,3.316]
[1724350156227,0.7441,2609.1,2609.0,0.38317]
[1724350158308,0.7441,2609.1,2608.9,0.38318]
[1724350158508,0.7441,2609.1,2609.0,0.38317]
[1724350158709,0.7441,2609.1,2608.9,0.38318]
[1724350158915,0.7441,2609.1,2608.8,0.3832]
[1724350158916,0.38318,2609.0,2608.8,0.3832]
[1724350160011,0.38318,2609.0,2608.9,0.38319]
[1724350160414,0.38318,2609.0,2608.8,0.38319]
[1724350160614,0.38318,2609.0,2608.9,0.38319]
[1724350163715,0.00291392,2609.2,2608.7,3.316]
[1724350164026,0.00291392,2609.2,2609.1,0.38316]
[1724350164214,0.38606392,2609.2,2609.1,0.38316]
[1724350165223,0.00291392,2609.2,2609.1,0.38316]
[1724350165525,0.00291392,2609.2,2608.9,0.3662]
[1724350165727,0.38317,2609.1,2609.0,0.38317]
[1724350166125,0.3731,2609.1,2609.0,0.38317]
[1724350166625,0.00291392,2609.2,2609.1,0.38316]
[1724350167226,0.75916392,2609.2,2609.0,0.38317]
[1724350167521,0.75916392,2609.2,2608.6,4.16588]
[1724350167522,7.0406,2609.1,2608.6,3.2078]
[1724350167726,7.0406,2609.1,2608.6,0.38323]
[1724350167727,0.38317,2609.0,2608.6,0.38323]
[1724350168019,3.95597,2609.1,2608.7,0.38322]
[1724350168323,3.95597,2609.1,2608.5,0.3761]
[1724350168324,3.5728,2609.1,2608.8,0.38319]
[1724350168522,3.5728,2609.1,2608.9,0.38319]
[1724350168821,3.5728,2609.1,2608.8,0.3832]
[1724350169122,3.95596,2609.1,2608.8,0.3832]
[1724350169324,3.5728,2609.1,2608.8,0.3832]
[1724350170621,3.5728,2609.1,2608.9,0.74239]
[1724350170919,0.37601392,2609.2,2608.9,0.3592]
[1724350171320,0.37601392,2609.2,2609.0,0.38316]
[1724350173426,0.37601392,2609.2,2608.9,1.09188]
[1724350173819,0.37601392,2609.2,2609.0,0.38317]
[1724350174326,0.37601392,2609.2,2608.9,1.09188]
[1724350174628,0.37601392,2609.2,2608.9,0.3592]
[1724350174920,0.38317,2609.0,2608.9,0.3592]
[1724350175127,0.38317,2609.0,2608.7,0.38321]
[1724350175329,0.38317,2609.1,2608.8,0.3832]
[1724350175519,0.38317,2609.0,2608.7,0.74481]
[1724350176521,0.3832,2608.9,2608.7,0.74482]
[1724350176723,0.3677,2608.8,2608.7,0.74482]
[1724350176925,0.7166,2608.8,2608.7,0.74482]
[1724350177121,0.7166,2608.8,2608.5,3.2078]
[1724350177320,1.09981,2608.8,2608.6,0.38323]
[1724350177623,1.09981,2608.8,2608.5,0.3616]
[1724350177820,1.09981,2608.8,2608.6,0.38323]
[1724350179029,0.7166,2608.8,2608.6,0.38323]
[1724350179328,1.09981,2608.8,2608.6,0.38323]
[1724350179514,0.3549,2608.7,2608.6,0.38323]
[1724350181923,0.7166,2608.8,2608.7,0.38322]
[1724350182932,0.3677,2608.8,2608.7,0.38322]
[1724350183830,0.38319,2608.9,2608.8,0.3832]
[1724350184021,1.12779,2609.0,2608.8,0.3832]
[1724350184224,0.38319,2608.9,2608.8,0.3832]
[1724350184532,0.7446,2609.0,2608.9,0.38319]
[1724350184834,1.12777,2609.0,2608.9,0.38319]
[1724350185019,0.7446,2609.0,2608.9,0.38319]
[1724350185929,6.11865755,2609.0,2608.9,0.38319]
[1724350187736,5.73548755,2609.0,2608.9,0.38319]
[1724350187940,5.37048755,2609.0,2608.9,0.38319]
[1724350189435,4.99088755,2609.0,2608.9,0.38319]
[1724350189934,0.75566,2609.1,2609.0,0.38317]
[1724350190128,0.38317,2609.0,2608.9,0.38318]
[1724350190328,0.75567,2609.1,2609.0,0.38317]
[1724350190527,5.74655755,2609.1,2609.0,0.38317]
[1724350190929,4.99088755,2609.1,2609.0,0.38317]
[1724350191331,0.00291392,2609.2,2609.1,0.38316]
[1724350199346,0.00291392,2609.2,2609.1,4.54887]
[1724350200340,0.00291392,2609.2,2609.1,11.69767]
[1724350200747,0.00291392,2609.2,2609.1,7.53196]
[1724350200941,0.38606392,2609.2,2609.1,0.38316]
[1724350201246,0.73891392,2609.2,2609.1,0.38316]
[1724350201740,0.38401392,2609.2,2609.1,0.38316]
[1724350202046,0.00291392,2609.2,2609.1,0.38316]
[1724350202242,5.40215663,2609.2,2609.1,0.38316]
[1724350202641,0.38606392,2609.2,2609.1,0.38316]
[1724350202840,0.38317,2609.0,2608.9,0.3636]
[1724350203137,0.38319,2608.9,2608.6,0.3699]
[1724350203334,5.01576685,2608.8,2608.7,0.38321]
[1724350205744,5.01576685,2608.8,2608.7,7.53281]
[1724350206140,5.01576685,2608.9,2608.8,0.3832]
[1724350206344,5.01576685,2608.9,2608.8,3.591]
[1724350206649,5.01576685,2608.9,2608.8,7.4238]
[1724350207535,5.01576685,2609.0,2608.9,1.34117]
[1724350207734,5.01576685,2609.0,2608.9,5.17397]
[1724350207935,5.01868077,2609.2,2609.1,0.38316]
[1724350215651,5.01868077,2609.2,2608.8,3.2078]
[1724350215948,0.38319,2608.9,2608.8,0.38319]
[1724350216452,0.38319,2608.9,2608.7,0.3831]
[1724350216453,0.3567,2609.0,2608.7,0.3831]
[1724350216649,0.3567,2609.0,2608.6,4.191]
[1724350216650,0.38319,2608.9,2608.6,4.191]
[1724350216844,0.73988,2609.0,2608.8,0.38319]
[1724350217646,0.73988,2609.0,2608.8,0.3832]
[1724350218042,0.73988,2609.0,2608.6,4.191]
[1724350218244,0.73988,2609.0,2608.9,0.38319]
[1724350218450,0.3567,2609.0,2608.9,0.38319]
[1724350218952,0.73987,2609.0,2608.9,0.38319]
[1724350219453,0.73987,2609.0,2608.8,0.3832]
[1724350219751,0.73987,2609.0,2608.9,0.38319]
[1724350220344,0.3567,2609.0,2608.9,0.38319]
[1724350221755,0.73987,2609.0,2608.9,0.38319]
[1724350222354,0.73987,2609.0,2608.8,0.38319]
[1724350222552,0.73987,2609.0,2608.9,0.38319]
[1724350222942,0.3567,2609.0,2608.9,0.38319]
[1724350223351,0.73987,2609.0,2608.9,0.38319]
[1724350223748,0.3567,2609.0,2608.9,0.38319]
[1724350224147,0.73987,2609.0,2608.9,0.38319]
[1724350225551,0.38323,2608.6,2608.5,0.76634]
[1724350225757,3.5645,2609.0,2608.3,0.00575197]
[1724350225953,0.38324,2608.6,2608.3,0.38902197]
[1724350226151,1.0643,2608.5,2608.3,0.38902197]
[1724350226558,1.0643,2608.5,2608.4,1.76426]
[1724350226755,1.0643,2608.5,2608.4,1.381]
[1724350226963,0.38326,2608.4,2608.3,1.38675197]
[1724350227157,3.59106,2608.4,2608.3,1.38675197]
[1724350227459,7.42466,2608.4,2608.3,0.00575197]
[1724350227848,0.38331,2608.1,2608.0,1.381]
[1724350228054,0.38331,2608.1,2607.8,0.38335]
[1724350228055,0.38333,2608.0,2607.8,1.381]
[1724350228254,0.7441,2608.0,2607.9,1.381]
[1724350228459,0.7441,2608.0,2607.8,0.38335]
[1724350228957,0.7441,2608.0,2607.7,0.38336]
[1724350229159,0.7441,2608.0,2607.8,0.38335]
[1724350229356,0.7441,2608.0,2607.7,0.38336]
[1724350229863,0.7441,2608.0,2607.8,0.38335]
[1724350230354,0.7441,2608.0,2607.9,0.38334]
[1724350230755,0.7441,2608.0,2607.8,0.38334]
[1724350231160,0.38905197,2608.2,2607.8,0.38334]
[1724350231362,0.38331,2608.1,2607.6,0.00575197]
[1724350231658,0.75685197,2608.2,2607.8,0.38334]
[1724350232260,0.75685197,2608.2,2607.9,0.38333]
[1724350232463,0.37355197,2608.2,2607.9,0.38333]
[1724350233459,0.75685197,2608.2,2607.9,0.38333]
[1724350233663,0.75684197,2608.2,2607.9,3.59113]
[1724350234074,0.75684197,2608.2,2607.9,0.38334]
[1724350234075,0.75685197,2608.2,2607.9,0.38334]
[1724350235264,0.75685197,2608.2,2608.1,0.38331]
[1724350235265,0.37355197,2608.2,2608.1,0.38331]
[1724350235961,0.00575197,2608.2,2608.1,0.38331]
[1724350236764,0.00575197,2608.2,2608.1,3.59111]
[1724350236958,0.00575197,2608.2,2608.1,10.73951]
[1724350237557,0.00575197,2608.2,2608.1,0.38331]
[1724350239159,0.00575197,2608.2,2608.0,0.38332]
[1724350239763,0.00575197,2608.2,2608.1,0.38331]
[1724350240967,0.00575197,2608.2,2608.1,7.53171]
[1724350241467,0.00575197,2608.2,2608.1,7.90311]
[1724350243462,0.00575197,2608.2,2608.0,0.38331]
[1724350243663,0.38905197,2608.2,2608.0,0.38331]
[1724350244074,0.38905197,2608.2,2608.1,0.38331]
[1724350244262,0.00575197,2608.2,2608.1,0.38331]
[1724350248673,0.38905197,2608.2,2607.9,0.3699]
[1724350248869,0.00575197,2608.2,2608.1,0.38331]
[1724350250076,0.38906197,2608.2,2607.9,0.3699]
[1724350250277,0.3674,2608.1,2608.0,0.38332]
[1724350250666,0.7406,2608.1,2608.0,0.38332]
[1724350251174,1.12391,2608.1,2608.0,0.38332]
[1724350251672,0.38332,2608.0,2607.9,0.3699]
[1724350252976,0.7406,2608.1,2607.9,0.3699]
[1724350253164,0.7406,2608.1,2608.0,0.38332]
[1724350253372,0.00575197,2608.2,2608.1,0.38331]
[1724350255276,0.38904197,2608.2,2608.1,0.38331]
[1724350255779,5.40480882,2608.2,2608.1,0.38331]
[1724350255974,5.40480882,2608.2,2607.9,0.3699]
[1724350255975,0.38331,2608.1,2608.0,0.38331]
[1724350256283,0.73012,2608.1,2607.9,0.75322]
[1724350256477,0.3466,2608.0,2607.9,0.75322]
[1724350256681,5.02151882,2608.2,2608.1,0.38331]
[1724350256978,0.00575197,2608.2,2608.1,6.90511]
[1724350257170,0.00575197,2608.2,2608.1,11.08981]
[1724350258274,0.00575197,2608.2,2608.1,7.88201]
[1724350258478,0.00575197,2608.2,2608.1,7.25541]
[1724350260774,0.00575197,2608.2,2608.1,6.90511]
[1724350261677,0.00575197,2608.2,2608.1,3.69731]
[1724350262075,0.00575197,2608.2,2608.1,0.38331]
[1724350262882,0.37255197,2608.2,2608.1,0.38331]
[1724350266682,0.00575197,2608.2,2608.1,7.53171]
[1724350267271,0.00575197,2608.2,2608.1,10.73951]
[1724350267473,0.00575197,2608.2,2608.1,6.90511]
[1724350267679,0.00575197,2608.2,2608.1,11.69778]
[1724350268470,0.00575197,2608.2,2608.1,7.86338]
[1724350270184,5.01576685,2608.6,2608.5,0.38325]
[1724350270482,5.01576685,2608.6,2608.1,15.3562]
[1724350270483,5.76897685,2608.8,2608.7,0.38322]
[1724350270785,0.37,2608.8,2608.7,0.38322]
[1724350271787,5.01576685,2608.9,2608.8,0.3832]
[1724350272175,5.39896685,2608.9,2608.5,0.3723]
[1724350272678,5.01576685,2608.9,2608.8,0.3832]
[1724350273080,5.39895685,2608.9,2608.8,0.3832]
[1724350273288,5.39895685,2608.9,2608.7,0.38321]
[1724350273479,5.39895685,2608.9,2608.8,0.3832]
[1724350274185,0.38321,2608.8,2608.7,0.38321]
[1724350274374,0.3832,2608.9,2608.8,0.3832]
[1724350274774,0.3832,2608.9,2608.7,0.38321]
[1724350275392,0.3832,2608.9,2608.8,0.3832]
[1724350275890,0.3832,2608.9,2608.7,0.38321]
[1724350276485,0.3832,2608.8,2608.7,0.38321]
[1724350276683,0.3832,2608.9,2608.8,0.3832]
[1724350277083,5.38031882,2609.0,2608.7,1.381]
[1724350277290,0.36455197,2609.0,2608.9,1.381]
[1724350277502,4.58052197,2609.0,2608.9,1.381]
[1724350278186,5.53846197,2609.0,2608.9,1.381]
[1724350278686,0.95798,2608.9,2608.5,0.3723]
[1724350278886,0.38323,2608.6,2608.5,0.75554]
[1724350279194,0.38323,2608.7,2608.6,0.38323]
[1724350279578,0.38323,2608.6,2608.5,0.75554]
[1724350279793,0.38326,2608.5,2608.4,0.38326]
[1724350279990,0.74696,2608.5,2608.4,0.38326]
[1724350280494,0.3579,2608.6,2608.5,0.38325]
[1724350282390,0.38321,2608.8,2608.7,0.38322]
[1724350282593,3.21355197,2609.0,2608.9,0.38319]
[1724350282783,3.59673197,2609.0,2608.9,1.76419]
[1724350282980,7.42953197,2609.0,2608.9,1.76419]
[1724350283494,7.42953197,2609.0,2608.9,1.381]
[1724350283794,0.38319,2608.9,2608.8,1.381]